bitfinex/quotes_BTCUSD_20250218
["timestamp","ask_amount","ask_price","bid_price","bid_amount"]
[1739899264283,0.02806188,94796.0,94779.0,0.281862]
[1739899264507,0.02806188,94796.0,94779.0,0.41255185]
[1739899265268,0.0003406,94804.0,94779.0,0.41255185]
[1739899265506,0.09291852,94804.0,94779.0,0.41255185]
[1739899265969,0.15,94818.0,94781.0,0.0787]
[1739899266294,0.21094,94814.0,94795.0,0.158236]
[1739899266522,0.158209,94811.0,94796.0,0.14967642]
[1739899266737,0.2110486,94817.0,94796.0,0.14967642]
[1739899266943,0.210942,94813.0,94796.0,0.14967642]
[1739899267159,0.15,94814.0,94796.0,0.10250365]
[1739899267373,0.158215,94808.0,94796.0,0.10250365]
[1739899267785,0.0001166,94817.0,94799.0,0.210972]
[1739899267991,0.0001166,94817.0,94804.0,0.15822]
[1739899268197,0.0001166,94817.0,94805.0,0.13347601]
[1739899268408,0.1501166,94817.0,94805.0,0.13347601]
[1739899268559,0.0001166,94817.0,94805.0,0.10250365]
[1739899268765,0.001,94811.0,94805.0,0.10250365]
[1739899268968,0.1583156,94817.0,94805.0,0.10250365]
[1739899269232,0.1593156,94817.0,94806.0,0.0796]
[1739899269422,0.1593156,94817.0,94807.0,0.10250365]
[1739899269615,0.0011166,94817.0,94807.0,0.10250365]
[1739899269791,0.1593156,94817.0,94807.0,0.10250365]
[1739899269992,0.1583156,94817.0,94807.0,0.10250365]
[1739899270200,0.158204,94814.0,94807.0,0.10250365]
[1739899270420,0.210948,94810.0,94798.0,0.049]
[1739899270684,0.158214,94808.0,94799.0,0.10250365]
[1739899270895,0.14998583,94810.0,94799.0,0.10250365]
[1739899271096,0.158227,94800.0,94799.0,0.10250365]
[1739899271497,0.210967,94802.0,94786.0,0.048]
[1739899271709,0.210993,94790.0,94786.0,0.10250365]
[1739899271919,0.14998583,94796.0,94775.0,0.0765]
[1739899271920,0.211007,94784.0,94775.0,0.0765]
[1739899272119,0.15,94795.0,94776.0,0.10250365]
[1739899272270,4.259807,94794.0,94776.0,0.10250365]
[1739899272595,0.158266,94777.0,94776.0,0.10250365]
[1739899272820,0.158265,94778.0,94776.0,0.10250365]
[1739899273212,0.211003,94786.0,94776.0,0.10294471]
[1739899273213,0.21101,94782.0,94776.0,0.10294471]
[1739899273610,0.158264,94778.0,94776.0,0.10294471]
[1739899273781,4.259807,94777.0,94776.0,0.00044106]
[1739899274956,4.54618581,94777.0,94776.0,0.00044106]
[1739899275083,4.409807,94777.0,94776.0,0.00044106]
[1739899275286,1.7259,94777.0,94776.0,0.00044106]
[1739899275713,0.9471,94777.0,94776.0,0.00044106]
[1739899275920,0.9471,94777.0,94776.0,0.10294471]
[1739899275921,0.001,94777.0,94776.0,0.10294471]
[1739899276147,0.02465858,94782.0,94776.0,0.11323918]
[1739899276344,0.14998583,94810.0,94777.0,0.10355862]
[1739899276578,0.158256,94783.0,94777.0,0.10355862]
[1739899276814,0.158254,94785.0,94777.0,0.10250365]
[1739899276959,0.158251,94787.0,94777.0,0.10250365]
[1739899277168,0.158253,94785.0,94777.0,0.10250365]
[1739899277392,0.158253,94785.0,94777.0,0.09850365]
[1739899277593,0.02108305,94792.0,94777.0,0.09850365]
[1739899277594,0.158256,94783.0,94777.0,0.09850365]
[1739899277919,0.158248,94788.0,94777.0,0.09850365]
[1739899278151,0.158247,94789.0,94778.0,0.00105497]
[1739899278371,0.00795056,94803.0,94780.0,0.046]
[1739899278575,0.158238,94794.0,94781.0,0.10250365]
[1739899278978,0.158235,94796.0,94781.0,0.10250365]
[1739899279193,0.158236,94795.0,94781.0,0.10250365]
[1739899279334,0.158238,94794.0,94781.0,0.16220662]
[1739899279557,0.001,94785.0,94781.0,0.16220662]
[1739899280776,0.15824,94793.0,94781.0,0.16220662]
[1739899281150,0.158238,94794.0,94781.0,0.16220662]
[1739899281353,0.158238,94794.0,94781.0,0.10200365]
[1739899281930,0.158236,94795.0,94781.0,0.10200365]
[1739899282134,0.003,94803.0,94789.0,0.158245]
[1739899282430,0.02069371,94804.0,94790.0,0.11938295]
[1739899282631,0.158225,94802.0,94790.0,0.10355845]
[1739899282789,0.02069371,94804.0,94790.0,0.10250365]
[1739899282995,0.1128,94803.0,94791.0,0.0771]
[1739899283199,0.158224,94802.0,94792.0,0.10250365]
[1739899283414,0.158227,94801.0,94792.0,0.10250365]
[1739899283603,0.158224,94802.0,94792.0,0.10250365]
[1739899283805,0.02069371,94804.0,94792.0,0.10250365]
[1739899284006,0.1222,94803.0,94793.0,0.0010548]
[1739899284250,0.23552106,94810.0,94794.0,0.10355846]
[1739899284415,0.02148466,94811.0,94798.0,0.15823]
[1739899284676,0.15,94813.0,94799.0,0.10250365]
[1739899284885,0.158223,94803.0,94799.0,0.10250365]
[1739899285085,0.158224,94803.0,94799.0,0.10250365]
[1739899285587,0.158227,94800.0,94799.0,0.10250365]
[1739899285787,0.36093383,94810.0,94799.0,0.10250365]
[1739899286004,0.158227,94800.0,94799.0,0.10250365]
[1739899286513,0.158227,94800.0,94799.0,0.10350365]
[1739899286725,0.36093383,94810.0,94799.0,0.10350365]
[1739899286726,0.158225,94802.0,94799.0,0.10350365]
[1739899286941,0.210961,94804.0,94799.0,0.10250365]
[1739899287144,0.158226,94801.0,94799.0,0.10250365]
[1739899287396,0.158222,94803.0,94799.0,0.10250365]
[1739899287599,0.158224,94802.0,94799.0,0.10250365]
[1739899288038,0.21095,94809.0,94799.0,0.10250365]
[1739899288218,0.158224,94802.0,94799.0,0.10250365]
[1739899288819,0.158219,94805.0,94799.0,0.10450365]
[1739899289026,0.158219,94805.0,94799.0,0.10250365]
[1739899289197,0.158223,94803.0,94799.0,0.10250365]
[1739899289417,0.02129433,94811.0,94799.0,0.10350365]
[1739899289618,0.158225,94802.0,94799.0,0.10350365]
[1739899289987,0.158225,94802.0,94799.0,0.10250365]
[1739899290412,0.158225,94802.0,94799.0,0.10350365]
[1739899291156,0.158227,94800.0,94799.0,0.10350365]
[1739899291536,0.158227,94800.0,94799.0,0.10250365]
[1739899291733,0.158225,94802.0,94799.0,0.10250365]
[1739899291954,0.158226,94801.0,94799.0,0.10250365]
[1739899292161,0.158222,94803.0,94799.0,0.10350365]
[1739899292713,0.158225,94802.0,94799.0,0.10350365]
[1739899292916,0.210961,94804.0,94799.0,0.10350365]
[1739899293093,0.158225,94802.0,94799.0,0.10350365]
[1739899293314,0.15,94810.0,94799.0,0.10350365]
[1739899293536,0.800013,94809.0,94799.0,0.10250365]
[1739899293744,0.02129433,94811.0,94800.0,0.0478]
[1739899293956,0.02488585,94815.0,94801.0,0.10355835]
[1739899294163,0.0003404,94817.0,94806.0,0.210954]
[1739899294401,0.0003404,94817.0,94807.0,0.10250365]
[1739899294606,0.210934,94816.0,94807.0,0.10250365]
[1739899294842,0.158214,94808.0,94807.0,0.10250365]
[1739899296110,0.158214,94808.0,94807.0,0.10450365]
[1739899296334,0.158226,94801.0,94800.0,0.0478]
[1739899296539,0.15835865,94801.0,94800.0,0.10250365]
[1739899297147,0.00013265,94801.0,94800.0,0.10250365]
[1739899297881,0.00013265,94801.0,94800.0,0.12101402]
[1739899298294,0.00013265,94801.0,94800.0,0.10250365]
[1739899298923,0.00013265,94801.0,94800.0,0.10650365]
[1739899299123,0.00013265,94801.0,94800.0,0.10250365]
[1739899299328,0.00013265,94801.0,94800.0,0.10650365]
[1739899299782,0.00013265,94801.0,94800.0,0.10250365]
[1739899300006,0.00013265,94801.0,94800.0,0.10650365]
[1739899300152,0.00013265,94801.0,94800.0,0.12141402]
[1739899300798,0.00013265,94801.0,94800.0,0.10250365]
[1739899301743,0.15835865,94801.0,94800.0,0.10250365]
[1739899301946,0.00013265,94801.0,94800.0,0.10250365]
[1739899302208,0.00013265,94801.0,94800.0,0.10650365]
[1739899302424,0.00013265,94801.0,94800.0,0.10250365]
[1739899302641,0.00013265,94801.0,94800.0,0.10650365]
[1739899303064,0.15835865,94801.0,94800.0,0.10650365]
[1739899303292,0.00013265,94801.0,94800.0,0.10650365]
[1739899303754,0.15835865,94801.0,94800.0,0.10650365]
[1739899303958,0.00013265,94801.0,94800.0,0.10650365]
[1739899304296,0.15835865,94801.0,94800.0,0.10650365]
[1739899304499,0.00013265,94801.0,94800.0,0.10650365]
[1739899304898,0.00013265,94801.0,94800.0,0.12541402]
[1739899306454,0.00013265,94801.0,94800.0,0.10650365]
[1739899306653,0.15835865,94801.0,94800.0,0.10650365]
[1739899307082,0.00013265,94801.0,94800.0,0.10650365]
[1739899307926,0.15835865,94801.0,94800.0,0.10650365]
[1739899309712,0.00013265,94801.0,94800.0,0.10650365]
[1739899310145,0.00013265,94801.0,94800.0,0.12541402]
[1739899310989,4.41816565,94801.0,94800.0,0.004]
[1739899311189,4.12185865,94801.0,94800.0,0.004]
[1739899311991,4.27185865,94801.0,94800.0,0.004]
[1739899312633,0.15,94800.0,94781.0,0.0459702]
[1739899312822,0.158257,94782.0,94781.0,0.0459702]
[1739899313025,0.158257,94782.0,94781.0,0.04813249]
[1739899313256,0.158254,94785.0,94781.0,0.04813249]
[1739899313460,0.158251,94786.0,94782.0,0.10250365]
[1739899314224,0.158252,94785.0,94782.0,0.10250365]
[1739899314597,0.158256,94783.0,94782.0,0.10450365]
[1739899315840,0.158256,94783.0,94782.0,0.10250365]
[1739899316058,0.158256,94783.0,94782.0,0.10450365]
[1739899316256,0.158256,94783.0,94782.0,0.10250365]
[1739899316832,0.158256,94783.0,94782.0,0.10550365]
[1739899317038,0.210977,94797.0,94782.0,0.12849428]
[1739899317223,0.1738683,94800.0,94783.0,0.00105489]
[1739899317421,0.158246,94789.0,94784.0,0.10250365]
[1739899317629,0.21099,94791.0,94784.0,0.10250365]
[1739899317826,0.210976,94798.0,94784.0,0.10250365]
[1739899318033,0.1738683,94800.0,94784.0,0.10250365]
[1739899318240,0.158247,94789.0,94784.0,0.10250365]
[1739899318639,0.14998583,94794.0,94784.0,0.10250365]
[1739899318837,0.158249,94787.0,94784.0,0.10250365]
[1739899319037,0.158252,94785.0,94784.0,0.10250365]
[1739899319642,0.158252,94785.0,94784.0,0.10350365]
[1739899319939,0.158252,94785.0,94784.0,0.10250365]
[1739899320124,0.158252,94785.0,94784.0,0.10550365]
[1739899321287,0.210995,94789.0,94784.0,0.10550365]
[1739899321475,0.210944,94812.0,94785.0,0.01641857]
[1739899321681,0.8029,94799.0,94787.0,0.0828]
[1739899321874,0.0018204,94802.0,94788.0,0.10250365]
[1739899322139,0.14998583,94800.0,94788.0,0.10250365]
[1739899322544,0.0018204,94802.0,94788.0,0.10250365]
[1739899322751,0.158233,94797.0,94789.0,0.02006673]
[1739899322949,0.158233,94797.0,94790.0,0.10250365]
[1739899323363,0.002,94799.0,94790.0,0.10250365]
[1739899323579,0.158242,94791.0,94790.0,0.10250365]
[1739899323798,0.210974,94798.0,94790.0,0.12103402]
[1739899324001,0.158242,94792.0,94790.0,0.12103402]
[1739899324222,0.158237,94795.0,94790.0,0.12103402]
[1739899324851,0.158242,94791.0,94790.0,0.12103402]
[1739899325059,0.158242,94791.0,94790.0,0.10250365]
[1739899325626,0.158242,94791.0,94790.0,0.10450365]
[1739899325886,0.158242,94791.0,94790.0,0.10250365]
[1739899326113,0.158257,94782.0,94781.0,0.04813249]
[1739899326239,0.158257,94782.0,94781.0,0.15063614]
[1739899327169,0.158254,94784.0,94781.0,0.17389677]
[1739899327367,0.14998583,94791.0,94782.0,0.10250365]
[1739899327695,0.1743843,94800.0,94783.0,0.00105494]
[1739899328059,0.02439847,94800.0,94785.0,0.0764]
[1739899328240,0.158233,94797.0,94786.0,0.10355843]
[1739899328389,0.158232,94798.0,94786.0,0.10572076]
[1739899328590,0.158232,94798.0,94786.0,0.31672176]
[1739899328822,0.00047305,94801.0,94787.0,0.06908748]
[1739899329024,0.21097,94800.0,94788.0,0.10250365]
[1739899329225,0.210974,94798.0,94788.0,0.10466598]
[1739899329427,0.210991,94791.0,94788.0,0.10466598]
[1739899329648,0.158246,94789.0,94788.0,0.10466598]
[1739899330325,0.158246,94789.0,94788.0,0.10566598]
[1739899331578,0.158246,94789.0,94788.0,0.10466598]
[1739899331824,0.158246,94789.0,94788.0,0.10666598]
[1739899332030,0.158246,94789.0,94788.0,0.10466598]
[1739899332478,0.15,94799.0,94788.0,0.1217296]
[1739899332689,0.158244,94791.0,94788.0,0.1217296]
[1739899332925,0.2112934,94808.0,94794.0,0.0777]
[1739899333134,0.0003404,94808.0,94795.0,0.10250365]
[1739899333366,0.158224,94803.0,94795.0,0.10572072]
[1739899333568,0.1600454,94802.0,94796.0,0.03416597]
[1739899333783,0.0018204,94802.0,94797.0,0.10250365]
[1739899333994,0.18020363,94801.0,94797.0,0.10466598]
[1739899334196,0.02197763,94801.0,94797.0,0.10466598]
[1739899335032,0.158228,94800.0,94797.0,0.10466598]
[1739899335245,0.02197763,94801.0,94797.0,0.10466597]
[1739899335469,0.158231,94798.0,94797.0,0.10466597]
[1739899335680,0.158231,94798.0,94797.0,0.00216232]
[1739899335916,0.158231,94798.0,94797.0,0.00416232]
[1739899337415,0.158231,94798.0,94797.0,0.00216232]
[1739899338047,4.418038,94798.0,94797.0,0.00216232]
[1739899338518,0.26073465,94798.0,94797.0,0.00216232]
[1739899338731,0.308257,94782.0,94781.0,0.0001702]
[1739899339383,4.568064,94782.0,94781.0,0.0001702]
[1739899339586,1.739957,94782.0,94781.0,0.0001702]
[1739899339812,1.715157,94782.0,94781.0,0.0001702]
[1739899340002,1.481957,94782.0,94781.0,0.0001702]
[1739899340151,1.5033261,94782.0,94781.0,0.0001702]
[1739899340625,1.4477261,94782.0,94781.0,0.0001702]
[1739899341593,0.6660261,94782.0,94781.0,0.0031702]
[1739899341911,0.62355659,94782.0,94781.0,0.0031702]
[1739899342115,0.56095659,94782.0,94781.0,0.0031702]
[1739899342315,0.3618,94782.0,94781.0,0.0031702]
[1739899342608,0.520057,94782.0,94781.0,0.0031702]
[1739899342820,0.52660914,94782.0,94781.0,0.0031702]
[1739899343055,0.158257,94782.0,94781.0,0.0031702]
[1739899344070,0.210995,94789.0,94781.0,0.0031702]
[1739899344071,0.0018204,94802.0,94781.0,0.11879789]
[1739899344389,0.158256,94783.0,94782.0,0.10250365]
[1739899344975,0.210993,94790.0,94782.0,0.10250365]
[1739899345191,0.14998583,94800.0,94782.0,0.1035586]
[1739899345379,0.158251,94786.0,94782.0,0.1035586]
[1739899345575,0.158251,94786.0,94783.0,0.040884]
[1739899345782,0.0003404,94808.0,94783.0,0.040884]
[1739899345783,0.158254,94784.0,94783.0,0.040884]
[1739899345987,0.158254,94784.0,94782.0,0.003]
[1739899346197,0.158256,94783.0,94782.0,0.003]
[1739899346844,0.210984,94794.0,94782.0,0.003]
[1739899347051,0.0018204,94802.0,94783.0,0.10250365]
[1739899347253,0.0018204,94802.0,94784.0,0.08779681]
[1739899347502,0.002,94800.0,94796.0,0.0476]
[1739899347640,0.158231,94798.0,94797.0,0.10250365]
[1739899347853,0.15689696,94798.0,94797.0,0.10250365]
[1739899348252,0.02197763,94801.0,94797.0,0.10250365]
[1739899348452,0.02197763,94801.0,94798.0,0.03188902]
[1739899348747,0.158227,94800.0,94799.0,0.10250365]
[1739899350805,0.02197763,94801.0,94800.0,0.0796]
[1739899350984,0.02197763,94801.0,94800.0,0.18210365]
[1739899351217,0.00047305,94801.0,94800.0,0.20517949]
[1739899352225,0.15869905,94801.0,94800.0,0.20517949]
[1739899352421,0.15869905,94801.0,94800.0,0.20717949]
[1739899352859,0.15869905,94801.0,94800.0,0.10450365]
[1739899354642,0.15869905,94801.0,94800.0,0.10250365]
[1739899355684,0.15869905,94801.0,94800.0,0.002]
[1739899355889,2.33759905,94801.0,94800.0,0.002]
[1739899357189,2.35902184,94801.0,94800.0,0.002]
[1739899357397,0.15,94800.0,94781.0,0.0001702]
[1739899357632,0.158257,94782.0,94781.0,0.10267385]
[1739899359845,0.158257,94782.0,94781.0,0.10567385]
[1739899360729,0.158253,94785.0,94781.0,0.11625826]
[1739899360932,0.158244,94790.0,94783.0,0.0773]
[1739899361129,0.210974,94798.0,94784.0,0.10250365]
[1739899361795,0.210974,94798.0,94785.0,0.3246]
[1739899362186,0.210974,94798.0,94786.0,0.10250365]
[1739899362388,0.21081443,94798.0,94786.0,0.12105061]
[1739899362588,0.158246,94789.0,94787.0,0.0454]
[1739899362872,0.21081443,94798.0,94788.0,0.10250365]
[1739899363290,0.158246,94789.0,94788.0,0.10250365]
[1739899364429,0.158246,94789.0,94788.0,0.10450365]
[1739899364846,0.158246,94789.0,94788.0,0.10250365]
[1739899365013,0.158246,94789.0,94788.0,0.10450365]
[1739899367818,0.158246,94789.0,94788.0,0.42910365]
[1739899368113,0.158246,94789.0,94788.0,0.48721417]
[1739899370067,0.158246,94789.0,94788.0,0.48451417]
[1739899370272,0.158246,94789.0,94788.0,0.48851417]
[1739899373660,0.158246,94789.0,94788.0,0.48868437]
[1739899375786,0.158245,94790.0,94788.0,0.48868437]
[1739899375986,0.158244,94790.0,94789.0,0.06299313]
[1739899376187,0.158244,94790.0,94789.0,0.16549678]
[1739899378115,0.158244,94790.0,94789.0,0.16949678]
[1739899379617,0.158244,94790.0,94789.0,0.49409678]
[1739899381563,0.158244,94790.0,94789.0,0.43110365]
[1739899381728,0.158244,94790.0,94789.0,0.3286]
[1739899382311,0.15813638,94790.0,94789.0,0.3286]
[1739899382519,4.34891438,94790.0,94789.0,0.3286]
[1739899382716,4.34891438,94790.0,94789.0,0.3246]
[1739899383167,4.34891438,94790.0,94789.0,0.3256]
[1739899383578,0.15813638,94790.0,94789.0,0.3256]
[1739899383786,4.34891438,94790.0,94789.0,0.3256]
[1739899385480,4.45141803,94790.0,94789.0,0.0011702]
[1739899385664,4.34891438,94790.0,94789.0,0.0011702]
[1739899386277,4.34891438,94790.0,94789.0,0.00261596]
[1739899386499,4.34925478,94790.0,94789.0,0.00261596]
[1739899388260,1.44627678,94790.0,94789.0,0.00261596]
[1739899388469,0.77467678,94790.0,94789.0,0.00261596]
[1739899388800,0.16047678,94790.0,94789.0,0.00261596]
[1739899389010,0.15847678,94790.0,94789.0,0.00161596]
[1739899389190,4.35225478,94790.0,94789.0,0.00161596]
[1739899390540,4.34925478,94790.0,94789.0,0.00161596]
[1739899390743,4.35125478,94790.0,94789.0,0.00161596]
[1739899390945,4.34925478,94790.0,94789.0,0.00161596]
[1739899391306,4.35125478,94790.0,94789.0,0.00161596]
[1739899392937,4.45375843,94790.0,94789.0,0.00161596]
[1739899393131,4.35125478,94790.0,94789.0,0.00161596]
[1739899393917,4.34925478,94790.0,94789.0,0.00161596]
[1739899394114,4.49925478,94790.0,94789.0,0.00161596]
[1739899395173,4.50125478,94790.0,94789.0,0.00161596]
[1739899395465,4.49925478,94790.0,94789.0,0.00161596]
[1739899395713,4.50125478,94790.0,94789.0,0.00161596]
[1739899395918,4.49925478,94790.0,94789.0,0.00161596]
[1739899397277,4.50325478,94790.0,94789.0,0.00161596]
[1739899397868,4.49925478,94790.0,94789.0,0.00161596]
[1739899398291,4.50325478,94790.0,94789.0,0.00161596]
[1739899400823,4.60575843,94790.0,94789.0,0.00161596]
[1739899401589,4.50325478,94790.0,94789.0,0.00161596]
[1739899401907,4.49925478,94790.0,94789.0,0.00161596]
[1739899403341,4.50325478,94790.0,94789.0,0.00161596]
[1739899403549,4.3493624,94790.0,94789.0,0.10411961]
[1739899403748,0.0003404,94790.0,94789.0,0.10411961]
[1739899403956,0.0043404,94790.0,94789.0,0.12705859]
[1739899404554,0.0043404,94790.0,94789.0,0.28635944]
[1739899404737,0.0043404,94790.0,94789.0,0.36720459]
[1739899404955,0.0043404,94790.0,94789.0,0.20895859]
[1739899405165,0.1625844,94790.0,94789.0,0.18601961]
[1739899405379,0.1585844,94790.0,94789.0,0.18601961]
[1739899406242,0.17839025,94790.0,94789.0,0.18601961]
[1739899406648,2.08019025,94790.0,94789.0,0.18601961]
[1739899406872,4.36916825,94790.0,94789.0,0.18601961]
[1739899407082,4.36916825,94790.0,94789.0,0.18701961]
[1739899407300,4.36916825,94790.0,94789.0,0.18601961]
[1739899407511,2.16939025,94790.0,94789.0,0.18601961]
[1739899407717,0.60019025,94790.0,94789.0,0.18801961]
[1739899407925,0.17839025,94790.0,94789.0,0.18601961]
[1739899408159,0.17839025,94790.0,94789.0,0.18801961]
[1739899408961,0.17839025,94790.0,94789.0,0.18601961]
[1739899410158,0.17839025,94790.0,94789.0,0.18801961]
[1739899411067,0.17839025,94790.0,94789.0,0.17135294]
[1739899411270,0.17839025,94790.0,94789.0,0.002]
[1739899411471,0.23842648,94790.0,94789.0,0.002]
[1739899411595,4.51916825,94790.0,94789.0,0.002]
[1739899412011,4.51916825,94790.0,94788.0,0.0001702]
[1739899412012,0.308246,94789.0,94788.0,0.0001702]
[1739899412191,4.499024,94789.0,94788.0,0.0001702]
[1739899413237,2.454946,94789.0,94788.0,0.0001702]
[1739899413846,2.454946,94789.0,94788.0,0.0021702]
[1739899414748,2.57840056,94789.0,94788.0,0.0021702]
[1739899416561,0.43170056,94789.0,94788.0,0.0001702]
[1739899416763,4.62247856,94789.0,94788.0,0.0001702]
[1739899417255,4.62447856,94789.0,94788.0,0.0001702]
[1739899417465,4.62247856,94789.0,94788.0,0.0001702]
[1739899418443,4.62747856,94789.0,94788.0,0.0001702]
[1739899419416,4.52497491,94789.0,94788.0,0.0001702]
[1739899419646,4.51997491,94789.0,94788.0,0.0001702]
[1739899419853,4.52497491,94789.0,94788.0,0.0001702]
[1739899420376,4.51997491,94789.0,94788.0,0.0001702]
[1739899420521,4.52497491,94789.0,94788.0,0.0001702]
[1739899420933,4.62747856,94789.0,94788.0,0.0001702]
[1739899421691,4.37497491,94789.0,94788.0,0.0001702]
[1739899428183,4.52497491,94789.0,94788.0,0.0001702]
[1739899429283,2.14689691,94789.0,94788.0,0.0001702]
[1739899430455,2.14189691,94789.0,94788.0,0.0001702]
[1739899430712,2.14689691,94789.0,94788.0,0.0001702]
[1739899431090,2.14189691,94789.0,94788.0,0.0001702]
[1739899431911,2.24440056,94789.0,94788.0,0.0001702]
[1739899432099,2.32360056,94789.0,94788.0,0.0001702]
[1739899432316,2.32760056,94789.0,94788.0,0.0001702]
[1739899432612,0.51090056,94789.0,94788.0,0.0001702]
[1739899432813,4.70167856,94789.0,94788.0,0.0001702]
[1739899433027,4.70567856,94789.0,94788.0,0.0001702]
[1739899433780,4.70167856,94789.0,94788.0,0.0001702]
[1739899433980,4.70767856,94789.0,94788.0,0.0011702]
[1739899434396,4.60517491,94789.0,94788.0,0.0011702]
[1739899435344,0.308264,94778.0,94777.0,0.0001702]
[1739899435544,4.499042,94778.0,94777.0,0.0001702]
[1739899436041,4.499042,94778.0,94777.0,2e-07]
[1739899436224,0.41076765,94778.0,94777.0,2e-07]
[1739899436832,0.44464281,94778.0,94777.0,2e-07]
[1739899437375,0.44564281,94778.0,94777.0,2e-07]
[1739899437580,0.44464281,94778.0,94777.0,2e-07]
[1739899437990,0.44964281,94778.0,94777.0,2e-07]
[1739899438675,0.51300775,94778.0,94777.0,2e-07]
[1739899439241,0.47413259,94778.0,94777.0,2e-07]
[1739899439443,0.48197145,94778.0,94777.0,2e-07]
[1739899439647,0.48697145,94778.0,94777.0,2e-07]
[1739899439890,0.48197145,94778.0,94777.0,2e-07]
[1739899440282,0.48697145,94778.0,94777.0,2e-07]
[1739899441192,0.52084661,94778.0,94777.0,2e-07]
[1739899441708,0.48697145,94778.0,94777.0,2e-07]
[1739899442361,0.48197145,94778.0,94777.0,2e-07]
[1739899442748,0.308284,94766.0,94765.0,3e-07]
[1739899444125,0.30832818,94766.0,94765.0,3e-07]
[1739899444304,0.31032818,94766.0,94765.0,3e-07]
[1739899445013,0.34420334,94766.0,94765.0,3e-07]
[1739899445999,0.31032818,94766.0,94765.0,3e-07]
[1739899446222,0.3917092,94766.0,94765.0,3e-07]
[1739899447633,0.15,94765.0,94758.0,0.0001431]
[1739899447843,0.158308,94752.0,94751.0,0.0002]
[1739899448018,4.349086,94752.0,94751.0,0.0002]
[1739899448227,4.349086,94752.0,94751.0,0.00736369]
[1739899448644,4.349086,94752.0,94751.0,0.0002]
[1739899448851,4.23224113,94752.0,94751.0,0.0002]
[1739899449057,4.39055,94752.0,94751.0,0.0002]
[1739899449268,4.39835058,94752.0,94751.0,0.0002]
[1739899449699,4.50185423,94752.0,94751.0,0.0002]
[1739899450093,0.158309,94751.0,94750.0,10.02421364]
[1739899450475,4.390551,94751.0,94750.0,10.02421364]
[1739899450886,4.515651,94751.0,94750.0,7.27052506]
[1739899451093,4.83582437,94751.0,94750.0,7.04343873]
[1739899451320,4.84836744,94751.0,94750.0,6.47185714]
[1739899451532,4.30737675,94751.0,94750.0,6.30010893]
[1739899451735,4.30737675,94751.0,94750.0,6.13390494]
[1739899451944,4.30737675,94751.0,94750.0,6.10807415]
[1739899452158,4.26076015,94751.0,94750.0,6.10807415]
[1739899452388,4.17520884,94751.0,94750.0,6.0552181]
[1739899452606,4.09930884,94751.0,94750.0,6.0552181]
[1739899452819,4.1665697,94751.0,94750.0,5.7193515]
[1739899453052,3.6844406,94751.0,94750.0,5.5807511]
[1739899453276,3.5261316,94751.0,94750.0,5.5807511]
[1739899453486,3.5321316,94751.0,94750.0,5.5807511]
[1739899453704,3.5321316,94751.0,94750.0,5.6261511]
[1739899453705,1.8457,94751.0,94750.0,5.6261511]
[1739899453981,0.14998583,94761.0,94750.0,5.72865475]
[1739899454222,0.14998583,94760.0,94751.0,0.4281589]
[1739899454436,0.14998583,94760.0,94751.0,0.42710365]
[1739899454678,0.2113606,94778.0,94751.0,0.42710365]
[1739899454679,0.0003406,94778.0,94752.0,0.0782553]
[1739899454884,0.0003406,94778.0,94753.0,0.20606252]
[1739899455068,0.0003406,94778.0,94754.0,0.15105517]
[1739899455303,0.14998583,94763.0,94755.0,0.10250365]
[1739899455505,0.158296,94759.0,94755.0,0.10250365]
[1739899455715,0.158296,94759.0,94752.0,0.0772]
[1739899455716,0.01583402,94759.0,94752.0,0.0772]
[1739899455923,0.158306,94753.0,94752.0,0.0772]
[1739899456132,0.163309,94751.0,94750.0,5.6261511]
[1739899456341,0.005,94751.0,94750.0,5.6261511]
[1739899456551,0.158308,94752.0,94750.0,5.6261511]
[1739899456758,0.158308,94752.0,94750.0,5.5807511]
[1739899456967,0.208045,94751.0,94750.0,5.5807511]
[1739899457393,0.158308,94752.0,94750.0,5.5807511]
[1739899459706,0.158308,94752.0,94750.0,5.58171695]
[1739899460480,4.082242,94751.0,94750.0,5.58171695]
[1739899460671,4.390551,94751.0,94750.0,5.58171695]
[1739899462576,4.93154124,94751.0,94750.0,5.46747864]
[1739899462777,4.55792289,94751.0,94750.0,5.35161547]
[1739899463020,4.56292289,94751.0,94750.0,5.35161547]
[1739899463177,4.76292289,94751.0,94750.0,5.35178577]
[1739899463399,4.75792289,94751.0,94750.0,5.35178577]
[1739899463603,4.76492289,94751.0,94750.0,5.35178577]
[1739899464796,4.76492289,94751.0,94750.0,5.24277577]
[1739899465212,4.75792289,94751.0,94750.0,5.24277577]
[1739899465503,4.76492289,94751.0,94750.0,5.24277577]
[1739899465937,4.75792289,94751.0,94750.0,5.24277577]
[1739899466346,4.76492289,94751.0,94750.0,5.24277577]
[1739899466704,4.76492289,94751.0,94750.0,5.1694269]
[1739899467114,1.882709,94751.0,94750.0,5.1694269]
[1739899467312,1.212609,94751.0,94750.0,5.1694269]
[1739899467497,0.376209,94751.0,94750.0,5.1694269]
[1739899467720,1.675509,94751.0,94750.0,5.1694269]
[1739899467941,0.357109,94751.0,94750.0,5.1694269]
[1739899468138,0.007,94751.0,94750.0,5.1694269]
[1739899468346,0.158308,94752.0,94750.0,5.1694269]
[1739899468606,0.211074,94754.0,94750.0,5.1694269]
[1739899468820,0.165309,94751.0,94750.0,5.1694269]
[1739899468951,0.158309,94751.0,94750.0,5.1694269]
[1739899469161,0.160309,94751.0,94750.0,5.1694269]
[1739899469595,0.158309,94751.0,94750.0,5.1694269]
[1739899470210,4.38457144,94751.0,94750.0,5.1694269]
[1739899470385,4.53457144,94751.0,94750.0,5.1694269]
[1739899471401,0.821409,94751.0,94750.0,5.1694269]
[1739899471604,0.158309,94751.0,94750.0,5.1694269]
[1739899472020,0.162309,94751.0,94750.0,5.1694269]
[1739899472227,0.158309,94751.0,94750.0,5.1694269]
[1739899472642,0.1583,94757.0,94750.0,5.1694269]
[1739899472846,0.56102283,94770.0,94750.0,5.1694269]
[1739899472847,0.1321,94756.0,94750.0,5.1694269]
[1739899473155,0.1006,94759.0,94750.0,5.1694269]
[1739899473362,0.001,94751.0,94750.0,5.1694269]
[1739899474526,0.14998583,94760.0,94750.0,5.1694269]
[1739899474715,0.158301,94756.0,94750.0,5.1694269]
[1739899475390,0.14998583,94760.0,94750.0,5.1694269]
[1739899475625,0.001,94751.0,94750.0,5.1694269]
[1739899475788,0.158305,94754.0,94750.0,5.1694269]
[1739899476025,0.003,94756.0,94750.0,5.1694269]
[1739899476401,0.14998583,94770.0,94752.0,0.046]
[1739899476617,0.158292,94762.0,94752.0,0.04696585]